[Event "*** SCC Grand Prix: Titled Tuesday Blitz"]
[Site "Chess.com"]
[Date "2020.10.06"]
[Round "2"]
[White "FMKonstantin_Twitch"]
[Black "Smirnov_Pavel"]
[Result "0-1"]
[WhiteElo "2536"]
[BlackElo "2804"]
[TimeControl "180+1"]
[EndTime "10:19:41 PDT"]
[Termination "Smirnov_Pavel won on time"]

1. Nf3 {[%clk 0:03:00.9]} 1... Nf6 {[%clk 0:02:59.6]} 2. g3 {[%clk 0:03:00.2]}
2... e6 {[%clk 0:03:00.2]} 3. Bg2 {[%clk 0:03:01.1]} 3... d5 {[%clk 0:03:00.8]}
4. O-O {[%clk 0:03:02]} 4... Be7 {[%clk 0:03:01.7]} 5. d4 {[%clk 0:03:02.3]}
5... O-O {[%clk 0:03:02.3]} 6. c3 {[%clk 0:03:01.8]} 6... c6 {[%clk 0:03:02.9]}
7. Nbd2 {[%clk 0:03:00.4]} 7... Nbd7 {[%clk 0:03:01.3]} 8. Re1 {[%clk
0:03:00.3]} 8... c5 {[%clk 0:02:52.5]} 9. e4 {[%clk 0:02:58.5]} 9... cxd4 {[%clk
0:02:46.4]} 10. Nxd4 {[%clk 0:02:59.4]} 10... Nc5 {[%clk 0:02:27.1]} 11. e5
{[%clk 0:02:50]} 11... Nfd7 {[%clk 0:02:26.6]} 12. N2b3 {[%clk 0:02:48.5]} 12...
Qc7 {[%clk 0:02:22.8]} 13. Bf4 {[%clk 0:02:42.2]} 13... a6 {[%clk 0:02:16.3]}
14. h4 {[%clk 0:02:37.2]} 14... Re8 {[%clk 0:01:57.4]} 15. h5 {[%clk 0:02:31.5]}
15... Nf8 {[%clk 0:01:56.5]} 16. Nxc5 {[%clk 0:02:26.7]} 16... Qxc5 {[%clk
0:01:54.4]} 17. Rc1 {[%clk 0:02:24.8]} 17... Bd7 {[%clk 0:01:52.7]} 18. Nb3
{[%clk 0:02:03.9]} 18... Qc7 {[%clk 0:01:51.8]} 19. Bxd5 {[%clk 0:01:56.9]}
19... exd5 {[%clk 0:01:45.5]} 20. e6 {[%clk 0:01:52.7]} 20... Qc8 {[%clk
0:01:45.6]} 21. exd7 {[%clk 0:01:50.2]} 21... Qxd7 {[%clk 0:01:46.5]} 22. Qf3
{[%clk 0:01:42.1]} 22... Ne6 {[%clk 0:01:41.6]} 23. Be3 {[%clk 0:01:40.3]} 23...
Rad8 {[%clk 0:01:28.5]} 24. Nd4 {[%clk 0:01:39.3]} 24... Nc5 {[%clk 0:01:23.7]}
25. Rcd1 {[%clk 0:01:32.5]} 25... Bf6 {[%clk 0:01:11.9]} 26. h6 {[%clk
0:01:29.3]} 26... Ne4 {[%clk 0:01:06.5]} 27. hxg7 {[%clk 0:01:26.7]} 27... Bxg7
{[%clk 0:01:04]} 28. Nf5 {[%clk 0:01:25.6]} 28... Bf6 {[%clk 0:00:57.5]} 29. Bd4
{[%clk 0:00:40.6]} 29... Bxd4 {[%clk 0:00:49]} 30. Rxd4 {[%clk 0:00:41.5]} 30...
Qe6 {[%clk 0:00:27.4]} 31. Kg2 {[%clk 0:00:36.4]} 31... Qg6 {[%clk 0:00:19.6]}
32. Qf4 {[%clk 0:00:32.9]} 32... b5 {[%clk 0:00:13.5]} 33. Red1 {[%clk
0:00:31.6]} 33... Nf6 {[%clk 0:00:12.1]} 34. Nh4 {[%clk 0:00:29.5]} 34... Qg7
{[%clk 0:00:11.7]} 35. Qf3 {[%clk 0:00:27.7]} 35... Re6 {[%clk 0:00:11.1]} 36.
Rf4 {[%clk 0:00:27.2]} 36... Rde8 {[%clk 0:00:10.3]} 37. Rh1 {[%clk 0:00:25.6]}
37... Ne4 {[%clk 0:00:05.4]} 38. Nf5 {[%clk 0:00:24.7]} 38... Qf8 {[%clk
0:00:04.9]} 39. Nd4 {[%clk 0:00:19.7]} 39... Rg6 {[%clk 0:00:04.3]} 40. Rf5
{[%clk 0:00:18.6]} 40... Ng5 {[%clk 0:00:03.9]} 41. Qxd5 {[%clk 0:00:15]} 41...
h6 {[%clk 0:00:04.4]} 42. Rf4 {[%clk 0:00:13.5]} 42... Rd8 {[%clk 0:00:04.2]}
43. Qf5 {[%clk 0:00:11.1]} 43... b4 {[%clk 0:00:04.2]} 44. Qxg6+ {[%clk
0:00:11.3]} 44... fxg6 {[%clk 0:00:03.5]} 45. Rxf8+ {[%clk 0:00:12.2]} 45...
Kxf8 {[%clk 0:00:03.6]} 46. Rxh6 {[%clk 0:00:13.1]} 46... Kg7 {[%clk 0:00:04]}
47. Rh4 {[%clk 0:00:12.9]} 47... bxc3 {[%clk 0:00:03.8]} 48. bxc3 {[%clk
0:00:12.9]} 48... Rc8 {[%clk 0:00:04.3]} 49. Rg4 {[%clk 0:00:12.1]} 49... Kf6
{[%clk 0:00:02.8]} 50. Rf4+ {[%clk 0:00:12]} 50... Kg7 {[%clk 0:00:02.4]} 51.
Nf3 {[%clk 0:00:07.9]} 51... Ne6 {[%clk 0:00:02.1]} 52. Re4 {[%clk 0:00:07.9]}
52... Kf6 {[%clk 0:00:02.6]} 53. Re3 {[%clk 0:00:07.3]} 53... Rc5 {[%clk
0:00:02.4]} 54. Nd2 {[%clk 0:00:07.2]} 54... Ra5 {[%clk 0:00:02.1]} 55. Ne4+
{[%clk 0:00:05.6]} 55... Ke7 {[%clk 0:00:02.6]} 56. Kf3 {[%clk 0:00:03.6]} 56...
Kd7 {[%clk 0:00:02.6]} 57. Rd3+ {[%clk 0:00:03.3]} 57... Ke7 {[%clk 0:00:02.6]}
58. Rd2 {[%clk 0:00:04.2]} 58... Ke8 {[%clk 0:00:02.6]} 59. Re2 {[%clk
0:00:04.6]} 59... Ke7 {[%clk 0:00:03.2]} 60. g4 {[%clk 0:00:03.9]} 60... Kd7
{[%clk 0:00:03.6]} 61. Ke3 {[%clk 0:00:04.1]} 61... Kc6 {[%clk 0:00:03.2]} 62.
f4 {[%clk 0:00:04.3]} 62... Nc7 {[%clk 0:00:03.4]} 63. f5 {[%clk 0:00:04.4]}
63... gxf5 {[%clk 0:00:02.6]} 64. gxf5 {[%clk 0:00:05.3]} 64... Rxf5 {[%clk
0:00:02.7]} 65. Rd2 {[%clk 0:00:04.9]} 65... Nd5+ {[%clk 0:00:03]} 66. Kd4
{[%clk 0:00:05.3]} 66... Nb6 {[%clk 0:00:03.1]} 67. c4 {[%clk 0:00:05.1]} 67...
Ra5 {[%clk 0:00:03.7]} 68. Rh2 {[%clk 0:00:04.6]} 68... Ra4 {[%clk 0:00:03.6]}
69. Rc2 {[%clk 0:00:02.3]} 69... Kc7 {[%clk 0:00:04]} 70. Nd2 {[%clk 0:00:02.5]}
70... Ra3 {[%clk 0:00:03.9]} 71. Nb3 {[%clk 0:00:02.6]} 71... Nd7 {[%clk
0:00:03.3]} 72. c5 {[%clk 0:00:02.7]} 72... Ra4+ {[%clk 0:00:03.4]} 73. Kd5
{[%clk 0:00:03]} 73... Nf6+ {[%clk 0:00:03.2]} 74. Ke5 {[%clk 0:00:02.9]} 74...
Ne4 {[%clk 0:00:03.8]} 75. c6 {[%clk 0:00:02.3]} 75... Nd6 {[%clk 0:00:03.2]}
76. Nd4 {[%clk 0:00:02.3]} 76... Rc4 {[%clk 0:00:02.4]} 0-1

[Event "*** SCC Grand Prix: Titled Tuesday Blitz"]
[Site "Chess.com"]
[Date "2020.10.06"]
[Round "2"]
[White "ehrenfeld"]
[Black "SergeyShtyka"]
[Result "1/2-1/2"]
[WhiteElo "2511"]
[BlackElo "2326"]
[TimeControl "180+1"]
[EndTime "10:19:46 PDT"]
[Termination "Game drawn by stalemate"]

1. e4 {[%clk 0:03:00.9]} 1... c5 {[%clk 0:02:58.6]} 2. Nc3 {[%clk 0:02:59.8]}
2... Nc6 {[%clk 0:02:58.7]} 3. Bb5 {[%clk 0:02:59]} 3... Nd4 {[%clk 0:02:56.6]}
4. Nf3 {[%clk 0:02:58.7]} 4... Nxb5 {[%clk 0:02:56.4]} 5. Nxb5 {[%clk
0:02:58.7]} 5... a6 {[%clk 0:02:56.8]} 6. Nc3 {[%clk 0:02:58.8]} 6... e6 {[%clk
0:02:56.2]} 7. d4 {[%clk 0:02:58.7]} 7... cxd4 {[%clk 0:02:56.2]} 8. Qxd4 {[%clk
0:02:58.6]} 8... d6 {[%clk 0:02:54.2]} 9. Bg5 {[%clk 0:02:49.2]} 9... Nf6 {[%clk
0:02:51.2]} 10. e5 {[%clk 0:02:42.6]} 10... dxe5 {[%clk 0:02:37.2]} 11. Qxd8+
{[%clk 0:02:41.9]} 11... Kxd8 {[%clk 0:02:36.6]} 12. Nxe5 {[%clk 0:02:42.4]}
12... Ke8 {[%clk 0:02:30.6]} 13. O-O-O {[%clk 0:02:41.5]} 13... Be7 {[%clk
0:02:27.1]} 14. Na4 {[%clk 0:02:34.3]} 14... Nd7 {[%clk 0:02:07.2]} 15. Bf4
{[%clk 0:01:44.5]} 15... b5 {[%clk 0:01:12]} 16. Nxd7 {[%clk 0:01:29.5]} 16...
Bxd7 {[%clk 0:01:12.9]} 17. Nb6 {[%clk 0:01:27.1]} 17... Ra7 {[%clk 0:01:13.1]}
18. Rd3 {[%clk 0:01:09.8]} 18... Rb7 {[%clk 0:01:11.1]} 19. Nxd7 {[%clk
0:01:06.2]} 19... Rxd7 {[%clk 0:01:10.6]} 20. Rhd1 {[%clk 0:01:02.4]} 20... Rxd3
{[%clk 0:01:09.3]} 21. Rxd3 {[%clk 0:01:02]} 21... f6 {[%clk 0:01:01.8]} 22. Bd6
{[%clk 0:00:52.3]} 22... h5 {[%clk 0:00:54.7]} 23. Kd2 {[%clk 0:00:51.3]} 23...
h4 {[%clk 0:00:51.4]} 24. h3 {[%clk 0:00:51]} 24... Rh5 {[%clk 0:00:50]} 25.
Bxe7 {[%clk 0:00:44.6]} 25... Kxe7 {[%clk 0:00:50]} 26. Kc3 {[%clk 0:00:44.7]}
26... Rg5 {[%clk 0:00:46.4]} 27. g4 {[%clk 0:00:42.1]} 27... hxg3 {[%clk
0:00:44.6]} 28. fxg3 {[%clk 0:00:33.2]} 28... Rh5 {[%clk 0:00:43.6]} 29. g4
{[%clk 0:00:32.5]} 29... Rc5+ {[%clk 0:00:42.5]} 30. Kb3 {[%clk 0:00:29]} 30...
Rc4 {[%clk 0:00:42.2]} 31. c3 {[%clk 0:00:27.9]} 31... e5 {[%clk 0:00:40.4]} 32.
Kc2 {[%clk 0:00:22.6]} 32... e4 {[%clk 0:00:38.2]} 33. Re3 {[%clk 0:00:20.4]}
33... Ke6 {[%clk 0:00:38.5]} 34. b3 {[%clk 0:00:20.3]} 34... Rc8 {[%clk
0:00:35.4]} 35. Rxe4+ {[%clk 0:00:20.5]} 35... Kd7 {[%clk 0:00:34.8]} 36. Kd3
{[%clk 0:00:20.9]} 36... Rh8 {[%clk 0:00:34.6]} 37. Re3 {[%clk 0:00:20.3]} 37...
Kd6 {[%clk 0:00:35]} 38. Ke4 {[%clk 0:00:20.2]} 38... Ke6 {[%clk 0:00:34]} 39.
Kf4+ {[%clk 0:00:20]} 39... Kf7 {[%clk 0:00:33.9]} 40. c4 {[%clk 0:00:19.9]}
40... bxc4 {[%clk 0:00:33.6]} 41. bxc4 {[%clk 0:00:20.1]} 41... Rc8 {[%clk
0:00:34.4]} 42. Rc3 {[%clk 0:00:20.1]} 42... Rc5 {[%clk 0:00:34.6]} 43. Ke4
{[%clk 0:00:19.8]} 43... Ke6 {[%clk 0:00:35]} 44. Kd4 {[%clk 0:00:20.3]} 44...
Kd6 {[%clk 0:00:34.1]} 45. Ra3 {[%clk 0:00:19.7]} 45... a5 {[%clk 0:00:32.2]}
46. Rb3 {[%clk 0:00:19.5]} 46... Re5 {[%clk 0:00:30.7]} 47. Rb6+ {[%clk
0:00:18.7]} 47... Kc7 {[%clk 0:00:30.5]} 48. Ra6 {[%clk 0:00:18.9]} 48... Kb7
{[%clk 0:00:26.8]} 49. Rd6 {[%clk 0:00:18.7]} 49... Kc7 {[%clk 0:00:26.9]} 50.
Rd5 {[%clk 0:00:18.9]} 50... Re2 {[%clk 0:00:22.9]} 51. Rxa5 {[%clk 0:00:18.7]}
51... Rh2 {[%clk 0:00:23.6]} 52. Kc5 {[%clk 0:00:18.1]} 52... Kb7 {[%clk
0:00:19.8]} 53. Kb5 {[%clk 0:00:15.6]} 53... Rb2+ {[%clk 0:00:16.7]} 54. Kc5
{[%clk 0:00:14.9]} 54... Rh2 {[%clk 0:00:17.3]} 55. Ra3 {[%clk 0:00:14.5]} 55...
g6 {[%clk 0:00:15.4]} 56. Kd5 {[%clk 0:00:14.5]} 56... f5 {[%clk 0:00:15.3]} 57.
gxf5 {[%clk 0:00:14.4]} 57... gxf5 {[%clk 0:00:15.8]} 58. Ke5 {[%clk 0:00:15]}
58... Rc2 {[%clk 0:00:14.9]} 59. Kxf5 {[%clk 0:00:14.5]} 59... Rxc4 {[%clk
0:00:14.9]} 60. Rb3+ {[%clk 0:00:14]} 60... Ka6 {[%clk 0:00:12.3]} 61. a3 {[%clk
0:00:14.6]} 61... Rc5+ {[%clk 0:00:12.6]} 62. Ke4 {[%clk 0:00:13.9]} 62... Rc4+
{[%clk 0:00:12.7]} 63. Kd5 {[%clk 0:00:13.8]} 63... Rh4 {[%clk 0:00:12.8]} 64.
Rf3 {[%clk 0:00:13.5]} 64... Ka5 {[%clk 0:00:12.5]} 65. Ke5 {[%clk 0:00:13.6]}
65... Rc4 {[%clk 0:00:07.4]} 66. Kf5 {[%clk 0:00:12.4]} 66... Rc5+ {[%clk
0:00:07.6]} 67. Kg4 {[%clk 0:00:12.4]} 67... Rc4+ {[%clk 0:00:07.4]} 68. Kg3
{[%clk 0:00:13]} 68... Rc8 {[%clk 0:00:07.2]} 69. h4 {[%clk 0:00:13.2]} 69...
Rg8+ {[%clk 0:00:07.7]} 70. Kh3 {[%clk 0:00:13.2]} 70... Ka4 {[%clk 0:00:08.1]}
71. h5 {[%clk 0:00:12.7]} 71... Rh8 {[%clk 0:00:08.7]} 72. Kh4 {[%clk
0:00:12.9]} 72... Rh6 {[%clk 0:00:07.1]} 73. Kg5 {[%clk 0:00:11.6]} 73... Rh8
{[%clk 0:00:08]} 74. h6 {[%clk 0:00:12.1]} 74... Rg8+ {[%clk 0:00:08.4]} 75. Kh5
{[%clk 0:00:12.5]} 75... Re8 {[%clk 0:00:07.8]} 76. h7 {[%clk 0:00:12]} 76...
Re5+ {[%clk 0:00:08.4]} 77. Kg6 {[%clk 0:00:11.9]} 77... Re6+ {[%clk 0:00:08.6]}
78. Rf6 {[%clk 0:00:11.9]} 78... Re8 {[%clk 0:00:07]} 79. Kg7 {[%clk 0:00:11.9]}
79... Re7+ {[%clk 0:00:06.9]} 80. Rf7 {[%clk 0:00:12.1]} 80... Re4 {[%clk
0:00:06.9]} 81. h8=Q {[%clk 0:00:11.8]} 81... Kxa3 {[%clk 0:00:07]} 82. Qh5
{[%clk 0:00:11.1]} 82... Rc4 {[%clk 0:00:06.9]} 83. Rf5 {[%clk 0:00:10.9]} 83...
Rc2 {[%clk 0:00:06.5]} 84. Kg6 {[%clk 0:00:11.2]} 84... Kb2 {[%clk 0:00:06.9]}
85. Rg5 {[%clk 0:00:11.4]} 85... Kb3 {[%clk 0:00:07]} 86. Qg4 {[%clk 0:00:11.5]}
86... Kb2 {[%clk 0:00:07.2]} 87. Qe4 {[%clk 0:00:10.8]} 87... Kb1 {[%clk
0:00:07.2]} 88. Qxc2+ {[%clk 0:00:10.6]} 88... Ka1 {[%clk 0:00:07.1]} 89. Rg3
{[%clk 0:00:11]} 1/2-1/2

[Event "*** SCC Grand Prix: Titled Tuesday Blitz"]
[Site "Chess.com"]
[Date "2020.10.06"]
[Round "3"]
[White "valeriocarnicelli"]
[Black "Cocaino74"]
[Result "0-1"]
[WhiteElo "2533"]
[BlackElo "2384"]
[TimeControl "180+1"]
[EndTime "10:21:42 PDT"]
[Termination "Cocaino74 won by resignation"]

1. e4 {[%clk 0:03:00.9]} 1... c5 {[%clk 0:02:58.9]} 2. Nf3 {[%clk 0:02:57.1]}
2... Nc6 {[%clk 0:02:58.8]} 3. d4 {[%clk 0:02:57.1]} 3... cxd4 {[%clk
0:02:59.7]} 4. Nxd4 {[%clk 0:02:57.7]} 4... g6 {[%clk 0:03:00.5]} 5. Nc3 {[%clk
0:02:57.6]} 5... Bg7 {[%clk 0:03:00.4]} 6. Be3 {[%clk 0:02:56.5]} 6... Nf6
{[%clk 0:03:00.9]} 7. Nxc6 {[%clk 0:02:55.9]} 7... bxc6 {[%clk 0:03:00.7]} 8. e5
{[%clk 0:02:55.3]} 8... Ng8 {[%clk 0:03:01.3]} 9. f4 {[%clk 0:02:55]} 9... Nh6
{[%clk 0:03:01.8]} 10. Qd2 {[%clk 0:02:55.1]} 10... Nf5 {[%clk 0:03:00.6]} 11.
Bf2 {[%clk 0:02:54.9]} 11... h5 {[%clk 0:03:01]} 12. O-O-O {[%clk 0:02:54.1]}
12... d6 {[%clk 0:02:55.7]} 13. h3 {[%clk 0:02:53]} 13... Qa5 {[%clk 0:02:52]}
14. Bb5 {[%clk 0:02:26.7]} 14... cxb5 {[%clk 0:02:45.3]} 0-1

[Event "*** SCC Grand Prix: Titled Tuesday Blitz"]
[Site "Chess.com"]
[Date "2020.10.06"]
[Round "3"]
[White "AlexeiShirov"]
[Black "StellarChessPro"]
[Result "1-0"]
[WhiteElo "2838"]
[BlackElo "2471"]
[TimeControl "180+1"]
[EndTime "10:23:01 PDT"]
[Termination "AlexeiShirov won by resignation"]

1. e4 {[%clk 0:03:00.9]} 1... g6 {[%clk 0:02:59.7]} 2. d4 {[%clk 0:02:59.9]}
2... Bg7 {[%clk 0:03:00.1]} 3. Nc3 {[%clk 0:02:59.7]} 3... d6 {[%clk 0:03:00.6]}
4. f4 {[%clk 0:02:59.2]} 4... c6 {[%clk 0:02:59.8]} 5. Nf3 {[%clk 0:02:57.7]}
5... Nf6 {[%clk 0:02:59.5]} 6. e5 {[%clk 0:02:53.6]} 6... dxe5 {[%clk
0:03:00.4]} 7. fxe5 {[%clk 0:02:52.7]} 7... Nd5 {[%clk 0:03:00.5]} 8. Bd3 {[%clk
0:02:43.5]} 8... Nxc3 {[%clk 0:02:59.7]} 9. bxc3 {[%clk 0:02:42.6]} 9... h6
{[%clk 0:02:57.9]} 10. Qe2 {[%clk 0:02:38.5]} 10... e6 {[%clk 0:02:48.5]} 11. h4
{[%clk 0:02:33]} 11... h5 {[%clk 0:02:47.6]} 12. Ng5 {[%clk 0:02:30.3]} 12...
O-O {[%clk 0:02:46.8]} 13. g4 {[%clk 0:02:28.4]} 13... hxg4 {[%clk 0:02:45.6]}
14. h5 {[%clk 0:02:27.3]} 14... Qa5 {[%clk 0:02:44.3]} 15. Bd2 {[%clk 0:02:24]}
15... f6 {[%clk 0:02:23.2]} 16. h6 {[%clk 0:02:13.7]} 16... fxg5 {[%clk
0:02:19.6]} 17. hxg7 {[%clk 0:02:13]} 17... Rf3 {[%clk 0:02:15]} 18. Qe4 {[%clk
0:02:06.5]} 18... Rf5 {[%clk 0:02:03.7]} 19. Rh8+ {[%clk 0:02:04.1]} 19... Kxg7
{[%clk 0:02:03.9]} 20. Qh1 {[%clk 0:02:03.6]} 1-0

[Event "*** SCC Grand Prix: Titled Tuesday Blitz"]
[Site "Chess.com"]
[Date "2020.10.06"]
[Round "3"]
[White "Matols"]
[Black "Superfelix"]
[Result "1-0"]
[WhiteElo "2281"]
[BlackElo "2446"]
[TimeControl "180+1"]
[EndTime "10:23:03 PDT"]
[Termination "Matols won by resignation"]

1. d4 {[%clk 0:03:00.9]} 1... g6 {[%clk 0:02:55.4]} 2. c4 {[%clk 0:03:00.3]}
2... Bg7 {[%clk 0:02:54.6]} 3. g3 {[%clk 0:02:59.5]} 3... Nf6 {[%clk 0:02:53.6]}
4. Bg2 {[%clk 0:02:59.2]} 4... d5 {[%clk 0:02:54.5]} 5. cxd5 {[%clk 0:02:58.4]}
5... Nxd5 {[%clk 0:02:55.4]} 6. Nf3 {[%clk 0:02:58.6]} 6... O-O {[%clk
0:02:54.9]} 7. O-O {[%clk 0:02:58.4]} 7... Nb6 {[%clk 0:02:55.8]} 8. Nc3 {[%clk
0:02:58]} 8... Nc6 {[%clk 0:02:54.6]} 9. e3 {[%clk 0:02:57.9]} 9... Re8 {[%clk
0:02:41.8]} 10. Re1 {[%clk 0:02:36.4]} 10... e5 {[%clk 0:02:39.8]} 11. d5 {[%clk
0:02:35.2]} 11... Na5 {[%clk 0:02:39.9]} 12. e4 {[%clk 0:02:17.6]} 12... c6
{[%clk 0:02:39.9]} 13. b3 {[%clk 0:02:07.5]} 13... cxd5 {[%clk 0:02:38.3]} 14.
exd5 {[%clk 0:02:01.4]} 14... e4 {[%clk 0:02:34.5]} 15. Nxe4 {[%clk 0:02:01.3]}
15... Bxa1 {[%clk 0:02:34]} 16. Bg5 {[%clk 0:02:01.1]} 16... Rxe4 {[%clk
0:02:07.8]} 17. Bxd8 {[%clk 0:01:54.6]} 17... Rxe1+ {[%clk 0:02:00.7]} 18. Qxe1
{[%clk 0:01:52.9]} 1-0

[Event "*** SCC Grand Prix: Titled Tuesday Blitz"]
[Site "Chess.com"]
[Date "2020.10.06"]
[Round "3"]
[White "MashaFromRussia"]
[Black "MasterMK73"]
[Result "1-0"]
[WhiteElo "2408"]
[BlackElo "2210"]
[TimeControl "180+1"]
[EndTime "10:23:43 PDT"]
[Termination "MashaFromRussia won by resignation"]

1. d4 {[%clk 0:03:00.9]} 1... d5 {[%clk 0:02:59.4]} 2. c4 {[%clk 0:03:01]} 2...
e6 {[%clk 0:02:59.1]} 3. Nf3 {[%clk 0:03:01.5]} 3... c6 {[%clk 0:02:58.7]} 4. g3
{[%clk 0:03:02]} 4... dxc4 {[%clk 0:02:56.8]} 5. Bg2 {[%clk 0:03:01.5]} 5... b5
{[%clk 0:02:56.8]} 6. O-O {[%clk 0:03:02]} 6... Bb7 {[%clk 0:02:56.7]} 7. Nc3
{[%clk 0:03:02.4]} 7... Nf6 {[%clk 0:02:56.2]} 8. e4 {[%clk 0:03:02.6]} 8... b4
{[%clk 0:02:52.2]} 9. e5 {[%clk 0:03:02.6]} 9... bxc3 {[%clk 0:02:46.8]} 10.
exf6 {[%clk 0:03:02.1]} 10... Qxf6 {[%clk 0:02:38.5]} 11. bxc3 {[%clk
0:03:01.1]} 11... Nd7 {[%clk 0:02:31.1]} 12. Bf4 {[%clk 0:02:59.2]} 12... h6
{[%clk 0:02:24]} 13. Rb1 {[%clk 0:02:58.9]} 13... Ba6 {[%clk 0:02:05.7]} 14. Ne5
{[%clk 0:02:58.3]} 14... g5 {[%clk 0:01:54.3]} 15. Bxc6 {[%clk 0:02:54.6]} 15...
Rd8 {[%clk 0:01:51.8]} 16. Nxd7 {[%clk 0:02:51.6]} 16... Rxd7 {[%clk 0:01:47.6]}
17. Qa4 {[%clk 0:02:46.8]} 17... Bc8 {[%clk 0:01:30.6]} 18. Be5 {[%clk
0:02:45.9]} 18... Qd8 {[%clk 0:01:21.3]} 19. Bxh8 {[%clk 0:02:43.5]} 19... f6
{[%clk 0:01:21.4]} 20. Rb8 {[%clk 0:02:43.6]} 20... Kf7 {[%clk 0:01:13.2]} 21.
Bxd7 {[%clk 0:02:35.7]} 21... Bxd7 {[%clk 0:01:04.5]} 22. Rxd8 {[%clk
0:02:34.9]} 22... Bxa4 {[%clk 0:01:04.3]} 23. Bxf6 {[%clk 0:02:34.9]} 1-0

[Event "*** SCC Grand Prix: Titled Tuesday Blitz"]
[Site "Chess.com"]
[Date "2020.10.06"]
[Round "3"]
[White "RamyresCoelho"]
[Black "northridgehawk"]
[Result "0-1"]
[WhiteElo "2019"]
[BlackElo "2308"]
[TimeControl "180+1"]
[EndTime "10:23:43 PDT"]
[Termination "northridgehawk won by resignation"]

1. e4 {[%clk 0:02:59.2]} 1... e5 {[%clk 0:02:55.3]} 2. Nf3 {[%clk 0:02:59.2]}
2... Nc6 {[%clk 0:02:53.8]} 3. d4 {[%clk 0:02:59.5]} 3... exd4 {[%clk
0:02:54.7]} 4. Bc4 {[%clk 0:02:59.8]} 4... Nf6 {[%clk 0:02:54.9]} 5. e5 {[%clk
0:03:00.1]} 5... d5 {[%clk 0:02:55.3]} 6. Bb5 {[%clk 0:03:00.2]} 6... Ne4 {[%clk
0:02:55.5]} 7. Nxd4 {[%clk 0:03:00.4]} 7... Bd7 {[%clk 0:02:56]} 8. Bxc6 {[%clk
0:03:00.3]} 8... bxc6 {[%clk 0:02:56.9]} 9. O-O {[%clk 0:02:54.5]} 9... Bc5
{[%clk 0:02:48.7]} 10. f3 {[%clk 0:02:54.2]} 10... Ng5 {[%clk 0:02:48.5]} 11. f4
{[%clk 0:02:54.6]} 11... Bg4 {[%clk 0:02:46.9]} 12. Qxg4 {[%clk 0:02:47.7]}
12... Bxd4+ {[%clk 0:02:46]} 13. Kh1 {[%clk 0:02:47.6]} 13... Ne4 {[%clk
0:02:46.9]} 14. Qxg7 {[%clk 0:02:41.3]} 14... Qh4 {[%clk 0:02:46.2]} 15. g3
{[%clk 0:02:15.5]} 15... Qh3 {[%clk 0:02:43.3]} 16. Rf3 {[%clk 0:01:43]} 16...
O-O-O {[%clk 0:02:40.2]} 17. Nc3 {[%clk 0:01:00.6]} 17... Rhg8 {[%clk
0:02:37.5]} 18. Qxf7 {[%clk 0:00:48.1]} 18... Nxg3+ {[%clk 0:02:35.8]} 19. Rxg3
{[%clk 0:00:46.3]} 19... Qf1+ {[%clk 0:02:36.7]} 0-1

[Event "*** SCC Grand Prix: Titled Tuesday Blitz"]
[Site "Chess.com"]
[Date "2020.10.06"]
[Round "3"]
[White "garicradomir"]
[Black "Ermito2020"]
[Result "0-1"]
[WhiteElo "2343"]
[BlackElo "2649"]
[TimeControl "180+1"]
[EndTime "10:23:52 PDT"]
[Termination "Ermito2020 won by resignation"]

1. e4 {[%clk 0:03:00.9]} 1... c6 {[%clk 0:03:00]} 2. d4 {[%clk 0:03:00.4]} 2...
d5 {[%clk 0:03:00.9]} 3. Nc3 {[%clk 0:03:00.8]} 3... dxe4 {[%clk 0:03:00.5]} 4.
Nxe4 {[%clk 0:03:01.7]} 4... Nf6 {[%clk 0:03:00.9]} 5. Nxf6+ {[%clk 0:03:02]}
5... exf6 {[%clk 0:03:01.8]} 6. c3 {[%clk 0:03:01.7]} 6... Bd6 {[%clk
0:03:02.1]} 7. Bd3 {[%clk 0:03:01.5]} 7... O-O {[%clk 0:03:01.7]} 8. Qc2 {[%clk
0:03:02.2]} 8... h5 {[%clk 0:03:01.9]} 9. Ne2 {[%clk 0:03:01.3]} 9... Re8 {[%clk
0:03:02]} 10. Be3 {[%clk 0:03:01.5]} 10... Be6 {[%clk 0:02:57]} 11. c4 {[%clk
0:02:56.3]} 11... Nd7 {[%clk 0:02:53.5]} 12. O-O-O {[%clk 0:02:55.4]} 12... Nf8
{[%clk 0:02:48.2]} 13. h3 {[%clk 0:02:51.5]} 13... a5 {[%clk 0:02:46.5]} 14. g4
{[%clk 0:02:48.7]} 14... h4 {[%clk 0:02:45.5]} 15. g5 {[%clk 0:02:43.8]} 15...
fxg5 {[%clk 0:02:44.5]} 16. Rdg1 {[%clk 0:02:38.1]} 16... f6 {[%clk 0:02:43.2]}
17. Nc3 {[%clk 0:02:34.4]} 17... a4 {[%clk 0:02:29.7]} 18. Nxa4 {[%clk
0:01:41.2]} 18... b5 {[%clk 0:02:29.3]} 19. Nc5 {[%clk 0:01:33.8]} 19... Bxc5
{[%clk 0:02:22.1]} 20. dxc5 {[%clk 0:01:33.5]} 20... Rxa2 {[%clk 0:02:22.6]} 21.
cxb5 {[%clk 0:01:28.4]} 21... Bd5 {[%clk 0:02:09.5]} 22. Rh2 {[%clk 0:01:08.2]}
22... Ra1+ {[%clk 0:02:08.4]} 23. Qb1 {[%clk 0:01:07]} 23... Rxb1+ {[%clk
0:02:07.8]} 0-1

[Event "*** SCC Grand Prix: Titled Tuesday Blitz"]
[Site "Chess.com"]
[Date "2020.10.06"]
[Round "3"]
[White "GHANDEEVAM2003"]
[Black "karwowskikacper"]
[Result "1-0"]
[WhiteElo "2955"]
[BlackElo "2475"]
[TimeControl "180+1"]
[EndTime "10:23:57 PDT"]
[Termination "GHANDEEVAM2003 won by resignation"]

1. e4 {[%clk 0:03:00.9]} 1... c5 {[%clk 0:02:59.2]} 2. Nf3 {[%clk 0:03:00.4]}
2... e6 {[%clk 0:02:58.4]} 3. d4 {[%clk 0:02:59.3]} 3... cxd4 {[%clk 0:02:59.3]}
4. Nxd4 {[%clk 0:03:00.2]} 4... Nc6 {[%clk 0:02:51.4]} 5. Nc3 {[%clk 0:02:59.5]}
5... a6 {[%clk 0:02:51.5]} 6. Be3 {[%clk 0:02:55.5]} 6... Qc7 {[%clk 0:02:51.6]}
7. Qf3 {[%clk 0:02:54.6]} 7... Nf6 {[%clk 0:02:51.6]} 8. Nxc6 {[%clk 0:02:43]}
8... dxc6 {[%clk 0:02:48.5]} 9. g4 {[%clk 0:02:32.4]} 9... h5 {[%clk 0:02:20.9]}
10. gxh5 {[%clk 0:02:17.8]} 10... Rxh5 {[%clk 0:02:15.9]} 11. O-O-O {[%clk
0:02:15]} 11... Be7 {[%clk 0:02:10.1]} 12. Be2 {[%clk 0:02:11.3]} 12... e5
{[%clk 0:02:00.5]} 13. Qg3 {[%clk 0:02:07.1]} 13... Rh7 {[%clk 0:01:55.2]} 14.
f4 {[%clk 0:01:54.1]} 14... Rh3 {[%clk 0:01:41]} 15. Qxg7 {[%clk 0:01:52.3]}
15... Rxe3 {[%clk 0:01:39.8]} 16. Qh8+ {[%clk 0:01:50.4]} 16... Bf8 {[%clk
0:01:39.1]} 17. Qxf6 {[%clk 0:01:50.7]} 17... exf4 {[%clk 0:01:37]} 18. Bh5
{[%clk 0:01:46.2]} 18... Qe7 {[%clk 0:01:21.6]} 19. Bxf7+ {[%clk 0:01:44.3]} 1-0